bitfinex-derivatives/quotes_BTCF0:USTF0_20250903
["timestamp","ask_amount","ask_price","bid_price","bid_amount"]
[1756893794708,1.84397741,111360.0,111350.0,0.0642]
[1756893794898,2.13397741,111360.0,111350.0,0.004]
[1756893795704,1.84397741,111360.0,111350.0,0.004]
[1756893797112,2.18397741,111360.0,111350.0,0.004]
[1756893799022,1.84397741,111360.0,111350.0,0.004]
[1756893799323,2.17397741,111360.0,111350.0,0.04139]
[1756893799627,2.1556068,111360.0,111350.0,0.04139]
[1756893800023,2.1556068,111360.0,111350.0,0.004]
[1756893801627,1.47554492,111360.0,111350.0,0.02765]
[1756893801831,1.58753586,111360.0,111350.0,0.43949094]
[1756893802027,1.24750492,111360.0,111350.0,0.43949094]
[1756893802232,1.58753586,111360.0,111350.0,0.43949094]
[1756893803029,1.25753586,111360.0,111350.0,0.43949094]
[1756893803532,1.59753586,111360.0,111350.0,0.43949094]
[1756893804034,1.27753586,111360.0,111350.0,0.43949094]
[1756893804536,1.25753586,111360.0,111350.0,0.43949094]
[1756893804738,1.63753586,111360.0,111350.0,0.43949094]
[1756893805034,1.63753586,111360.0,111350.0,0.09946]
[1756893805235,1.9775668,111360.0,111350.0,0.01774]
[1756893805435,1.7024277,111360.0,111350.0,0.01774]
[1756893808638,1.7024277,111360.0,111350.0,0.04139]
[1756893808839,0.8679077,111360.0,111350.0,0.09946]
[1756893809037,1.24872939,111360.0,111350.0,0.09946]
[1756893809740,0.03464939,111360.0,111350.0,0.80271831]
[1756893809941,0.86840939,111360.0,111350.0,0.80271831]
[1756893810541,0.84678,111360.0,111350.0,0.80271831]
[1756893810737,0.86842752,111360.0,111350.0,0.80271831]
[1756893811340,0.02660752,111360.0,111350.0,0.80271831]
[1756893811540,0.86076752,111360.0,111350.0,0.80271831]
[1756893811843,0.86882752,111360.0,111350.0,0.80271831]
[1756893813844,0.86882752,111360.0,111350.0,0.34946]
[1756893814542,0.84718,111360.0,111350.0,0.34946]
[1756893815152,1.20718,111360.0,111350.0,0.34946]
[1756893815450,0.88884502,111360.0,111350.0,0.34946]
[1756893815645,1.19718,111360.0,111350.0,0.34946]
[1756893815846,0.86884502,111360.0,111350.0,0.34946]
[1756893816349,1.18884502,111360.0,111350.0,0.34946]
[1756893817442,1.18884502,111360.0,111350.0,0.35849429]
[1756893817443,0.88884502,111360.0,111350.0,0.35849429]
[1756893817749,1.21884502,111360.0,111350.0,0.35849429]
[1756893818748,0.86884502,111360.0,111350.0,0.35849429]
[1756893819447,1.22884502,111360.0,111350.0,0.34946]
[1756893819648,0.88884502,111360.0,111350.0,0.0642]
[1756893820054,0.86884502,111360.0,111350.0,0.1002]
[1756893821450,0.86884502,111360.0,111350.0,0.10922439]
[1756893821751,1.18884502,111360.0,111350.0,0.1002]
[1756893822047,1.34210333,111360.0,111350.0,0.0642]
[1756893822344,1.69210333,111360.0,111350.0,0.04139]
[1756893822551,1.34210333,111360.0,111350.0,0.04139]
[1756893822746,1.64210333,111360.0,111350.0,0.004]
[1756893822950,1.34210333,111360.0,111350.0,0.01825]
[1756893823251,1.64210333,111360.0,111350.0,0.01825]
[1756893823448,1.34210333,111360.0,111350.0,0.01825]
[1756893823652,1.64210333,111360.0,111350.0,0.004]
[1756893823843,1.59210333,111360.0,111350.0,0.004]
[1756893824044,1.92210333,111360.0,111350.0,0.0009]
[1756893824346,2.37536164,111360.0,111350.0,0.0009]
[1756893824546,2.37562562,111360.0,111350.0,0.0009]
[1756893825148,2.42396115,111360.0,111350.0,0.0009]
[1756893825351,2.37562562,111360.0,111350.0,0.0009]
[1756893826149,2.42396115,111360.0,111350.0,0.0009]
[1756893826947,2.52167355,111360.0,111310.0,0.036]
[1756893827157,0.45325831,111330.0,111320.0,0.0472]
[1756893827359,1.30842731,111330.0,111320.0,0.0472]
[1756893827962,1.32842731,111330.0,111320.0,0.0472]
[1756893828558,1.30842731,111330.0,111320.0,0.0472]
[1756893828760,1.32842731,111330.0,111320.0,0.0512]
[1756893828960,1.32842731,111330.0,111320.0,0.0552]
[1756893829160,1.67842731,111330.0,111320.0,0.0552]
[1756893829360,1.30842731,111330.0,111320.0,0.0552]
[1756893829561,1.30842731,111330.0,111320.0,0.008]
[1756893829562,1.63842731,111330.0,111320.0,0.008]
[1756893830066,1.88842731,111330.0,111320.0,0.008]
[1756893830567,1.88838731,111330.0,111320.0,0.008]
[1756893830761,1.435129,111330.0,111320.0,0.008]
[1756893830959,1.88838731,111330.0,111320.0,0.008]
[1756893831160,1.89758063,111330.0,111320.0,0.008]
[1756893832562,0.601929,111330.0,111320.0,0.008]
[1756893832760,1.88818731,111330.0,111320.0,0.008]
[1756893833268,1.05518731,111330.0,111320.0,0.008]
[1756893833764,1.30770731,111330.0,111320.0,0.0912]
[1756893834670,0.47518731,111330.0,111320.0,0.0912]
[1756893834871,1.30806731,111330.0,111320.0,0.0912]
[1756893835069,0.47518731,111330.0,111320.0,0.0912]
[1756893835265,1.30806731,111330.0,111320.0,0.0912]
[1756893835968,1.30806731,111330.0,111320.0,0.0552]
[1756893836469,1.30806731,111330.0,111320.0,0.0912]
[1756893836973,1.65806731,111330.0,111320.0,0.0912]
[1756893837272,1.32806731,111330.0,111320.0,0.0912]
[1756893838666,0.49518731,111330.0,111320.0,0.0912]
[1756893838864,1.32754731,111330.0,111320.0,0.0912]
[1756893840075,0.041929,111330.0,111320.0,0.0912]
[1756893840375,1.30726731,111330.0,111320.0,0.0912]
[1756893841477,1.63726731,111330.0,111320.0,0.0552]
[1756893842077,1.65726731,111330.0,111320.0,0.008]
[1756893842381,1.35726731,111330.0,111320.0,0.008]
[1756893842678,1.30726731,111330.0,111320.0,0.008]
[1756893843273,1.68726731,111330.0,111320.0,0.008]
[1756893843786,1.30726731,111330.0,111320.0,0.008]
[1756893843974,1.35726731,111330.0,111320.0,0.008]
[1756893844174,0.52518731,111330.0,111320.0,0.0912]
[1756893844371,1.35730731,111330.0,111320.0,0.0912]
[1756893844672,1.35750731,111330.0,111320.0,0.0912]
[1756893846178,1.35750731,111330.0,111320.0,0.0872]
[1756893846380,1.35750731,111330.0,111320.0,0.0902]
[1756893846880,1.35750731,111330.0,111320.0,0.0862]
[1756893847079,1.35750731,111330.0,111320.0,0.0892]
[1756893848278,1.35750731,111330.0,111320.0,0.0532]
[1756893849180,1.35750731,111330.0,111320.0,0.08893]
[1756893849378,0.52518731,111330.0,111320.0,0.08893]
[1756893849676,0.071929,111330.0,111320.0,0.08893]
[1756893849987,0.88156,111330.0,111320.0,0.33893]
[1756893850576,0.88156,111330.0,111320.0,0.79218831]
[1756893851071,0.83156,111330.0,111320.0,1.16218831]
[1756893851669,1.89798,111340.0,111330.0,0.0849]
[1756893851976,0.0001,111350.0,111340.0,0.0849]
[1756893852176,0.0219294,111350.0,111340.0,0.09402561]
[1756893852379,0.8549294,111350.0,111340.0,0.0849]
[1756893853486,0.8547694,111350.0,111340.0,0.0849]
[1756893853874,0.8546494,111350.0,111340.0,0.0849]
[1756893854075,0.8546494,111350.0,111340.0,0.0859]
[1756893854494,1.30790771,111350.0,111340.0,0.0859]
[1756893854672,1.30790771,111350.0,111340.0,0.05117]
[1756893854876,1.32790771,111350.0,111340.0,0.05117]
[1756893857984,1.90790771,111350.0,111340.0,0.002]
[1756893858581,1.55790771,111350.0,111340.0,0.002]
[1756893858781,1.87790771,111350.0,111340.0,0.002]
[1756893858978,1.92624324,111350.0,111340.0,0.002]
[1756893859379,1.92624324,111350.0,111340.0,0.001]
[1756893859580,1.92724324,111350.0,111310.0,0.05636007]
[1756893859880,0.45325831,111320.0,111310.0,0.11553007]
[1756893860076,1.22393831,111320.0,111310.0,0.11553007]
[1756893860677,1.22393831,111320.0,111310.0,0.11653007]
[1756893861385,1.22393831,111320.0,111310.0,0.11753007]
[1756893861386,0.77068,111320.0,111310.0,0.11753007]
[1756893861581,1.24590678,111320.0,111310.0,0.08180007]
[1756893862084,1.24590678,111320.0,111310.0,0.11753007]
[1756893863381,1.24590678,111320.0,111310.0,0.10753007]
[1756893864486,1.24590678,111320.0,111310.0,0.07180007]
[1756893865489,0.79264847,111320.0,111310.0,0.02263007]
[1756893865688,2.08306601,111320.0,111310.0,0.02263007]
[1756893866188,0.02196847,111320.0,111310.0,0.44773884]
[1756893866388,1.20561724,111320.0,111310.0,0.07180007]
[1756893866589,1.20561724,111320.0,111310.0,0.10753007]
[1756893867294,0.02196847,111320.0,111310.0,0.44773884]
[1756893867489,1.20825724,111320.0,111310.0,0.44773884]
[1756893868690,0.86804847,111320.0,111310.0,0.44773884]
[1756893868991,1.20825724,111320.0,111310.0,0.44773884]
[1756893869383,1.54846601,111320.0,111310.0,0.07180007]
[1756893869582,2.14846601,111320.0,111310.0,0.002]
[1756893869786,1.81846601,111320.0,111310.0,0.002]
[1756893869985,2.10846601,111320.0,111310.0,0.002]
[1756893871895,2.44867478,111320.0,111310.0,0.002]
[1756893872097,2.45771798,111320.0,111310.0,0.002]
[1756893873097,2.45971798,111320.0,111310.0,0.001]
[1756893873791,2.46271798,111320.0,111280.0,0.42510877]
[1756893873985,0.34020877,111290.0,111280.0,0.73510877]
[1756893874186,1.18604877,111290.0,111280.0,0.73510877]
[1756893874989,0.07362347,111300.0,111290.0,0.03573]
[1756893875195,1.25949224,111300.0,111290.0,0.0849]
[1756893876490,1.59970101,111300.0,111290.0,0.0849]
[1756893876692,0.91928347,111300.0,111290.0,0.0849]
[1756893876886,1.59970101,111300.0,111290.0,0.0849]
[1756893877194,1.60070101,111300.0,111290.0,0.0849]
[1756893882395,1.60070101,111300.0,111290.0,0.04917]
[1756893882595,1.62070101,111300.0,111290.0,0.04917]
[1756893885291,1.62070101,111300.0,111280.0,0.0824]
[1756893885491,0.34020877,111290.0,111280.0,0.04635]
[1756893886094,0.36020877,111290.0,111280.0,0.04635]
[1756893886596,0.36020877,111290.0,111280.0,0.04735]
[1756893886997,0.36020877,111290.0,111280.0,0.02512]
[1756893887791,0.84336,111290.0,111280.0,0.0844]
[1756893887992,0.07362347,111300.0,111280.0,0.42360877]
[1756893888194,0.09559452,111300.0,111290.0,0.42260877]
[1756893888392,0.09549452,111300.0,111290.0,0.42260877]
[1756893888592,0.88862329,111300.0,111290.0,0.42260877]
[1756893889603,0.43570329,111300.0,111290.0,0.73260877]
[1756893889803,1.28106329,111300.0,111290.0,0.42260877]
[1756893889998,1.28406329,111300.0,111290.0,0.42260877]
[1756893890195,1.28366329,111300.0,111290.0,0.42260877]
[1756893890702,0.44070329,111300.0,111290.0,0.42260877]
[1756893891002,1.28350329,111300.0,111290.0,0.42260877]
[1756893892201,0.10049452,111300.0,111290.0,0.67260877]
[1756893892404,0.88589452,111300.0,111290.0,1.04260877]
[1756893892805,0.88589452,111300.0,111290.0,0.67260877]
[1756893893003,1.22610329,111300.0,111290.0,0.3324]
[1756893893305,1.56631206,111300.0,111280.0,0.0824]
[1756893893605,0.34020877,111290.0,111280.0,0.42260877]
[1756893894797,0.86302347,111300.0,111280.0,0.04635]
[1756893895003,0.34020877,111290.0,111280.0,0.04635]
[1756893895403,0.36232189,111290.0,111280.0,0.04635]
[1756893895603,0.36232189,111290.0,111280.0,0.0824]
[1756893896604,0.36332189,111290.0,111280.0,0.0824]
[1756893896812,0.36532189,111290.0,111280.0,0.0824]
[1756893897915,0.36532189,111290.0,111270.0,0.10321097]
[1756893898112,1.18248877,111280.0,111270.0,0.81341974]
[1756893900609,1.18348877,111280.0,111270.0,0.81341974]
[1756893905216,1.18348877,111280.0,111270.0,0.47321097]
[1756893905513,1.18348877,111280.0,111270.0,0.81341974]
[1756893906608,1.18348877,111280.0,111270.0,0.47321097]
[1756893906913,1.18348877,111280.0,111270.0,0.81341974]
[1756893907415,1.18348877,111280.0,111270.0,0.47321097]
[1756893907715,1.18348877,111280.0,111270.0,0.81341974]
[1756893910017,0.34120877,111280.0,111270.0,0.81341974]
[1756893910219,0.001,111280.0,111270.0,1.15362851]
[1756893910408,0.001,111280.0,111270.0,2.33441001]
[1756893910610,0.001,111280.0,111270.0,2.24454851]
[1756893911116,0.001,111280.0,111270.0,1.56413097]
[1756893911317,0.001,111280.0,111270.0,2.24454851]
[1756893914516,0.001,111280.0,111270.0,2.33441011]
[1756893914910,0.001,111280.0,111270.0,2.67904759]
[1756893919113,0.00016,111310.0,111300.0,0.0145]
[1756893919420,3.07944877,111320.0,111310.0,0.03643]
[1756893919625,2.28150341,111320.0,111310.0,0.42335877]
[1756893919921,2.26150341,111320.0,111310.0,0.08315]
[1756893920116,2.26150341,111320.0,111310.0,0.42335877]
[1756893920512,2.33275757,111320.0,111310.0,0.42335877]
[1756893920717,0.27253464,111320.0,111310.0,0.42335877]
[1756893920910,0.61274341,111320.0,111310.0,0.42335877]
[1756893921316,0.61474341,111320.0,111310.0,0.42335877]
[1756893921814,0.61274341,111320.0,111310.0,0.42335877]
[1756893922011,0.61374341,111320.0,111310.0,0.42335877]
[1756893922214,0.59162877,111320.0,111310.0,0.42335877]
[1756893922412,0.61372395,111320.0,111310.0,0.42335877]
[1756893923220,0.59262877,111320.0,111310.0,0.42335877]
[1756893924022,0.25242,111320.0,111310.0,0.42335877]
[1756893924222,0.34262877,111320.0,111310.0,0.42335877]
[1756893925116,0.34062877,111320.0,111310.0,0.42335877]
[1756893925322,0.41296068,111320.0,111310.0,0.42335877]
[1756893925518,0.02250404,111320.0,111310.0,0.71335877]
[1756893925720,0.02240404,111320.0,111310.0,0.71335877]
[1756893925921,0.02340404,111320.0,111310.0,0.7222123]
[1756893926121,0.02308404,111320.0,111310.0,0.7222123]
[1756893926915,0.02324404,111320.0,111310.0,0.7222123]
[1756893927321,0.02308404,111320.0,111310.0,0.7222123]
[1756893927628,0.001,111320.0,111310.0,1.08537629]
[1756893927831,0.83966,111340.0,111320.0,0.03643]
[1756893928021,0.86205219,111340.0,111330.0,0.08315]
[1756893929221,0.02249219,111340.0,111330.0,0.08315]
[1756893929423,0.86277219,111340.0,111330.0,0.08315]
[1756893930227,1.31614495,111340.0,111330.0,0.08315]
[1756893930424,1.31714495,111340.0,111330.0,0.02277]
[1756893930626,0.00042,111330.0,111320.0,0.08315]
[1756893930828,0.02249219,111330.0,111320.0,0.08315]
[1756893932819,0.02249219,111330.0,111320.0,0.53652276]
[1756893933626,0.02249219,111330.0,111320.0,0.08315]
[1756893934130,0.72586495,111330.0,111320.0,0.04672]
[1756893934430,0.74586495,111330.0,111320.0,0.04672]
[1756893935132,0.74786495,111330.0,111320.0,0.04672]
[1756893936626,0.75086495,111330.0,111320.0,0.04672]
[1756893937126,0.75076495,111330.0,111310.0,0.03643]
[1756893937326,1.29135276,111320.0,111310.0,0.08315]
[1756893937526,1.29135276,111320.0,111310.0,0.04672]
[1756893937733,1.31341565,111320.0,111310.0,0.04672]
[1756893938832,1.33341565,111320.0,111310.0,0.04672]
[1756893939234,1.33441565,111320.0,111310.0,0.04672]
[1756893939837,1.31441565,111320.0,111310.0,0.08297]
[1756893940137,1.31541565,111320.0,111310.0,0.08297]
[1756893940336,0.86204289,111320.0,111310.0,0.08297]
[1756893941136,1.31541565,111320.0,111310.0,0.08297]
[1756893947942,0.00042,111310.0,111300.0,0.06166]
[1756893948142,0.45379276,111310.0,111300.0,0.0645]
[1756893948338,0.0001,111300.0,111290.0,0.04469198]
[1756893948538,0.0001,111300.0,111280.0,0.39316285]
[1756893948539,0.00042,111290.0,111280.0,0.08341]
[1756893948739,0.00042,111290.0,111280.0,0.40341]
[1756893951247,0.45379276,111290.0,111280.0,0.04916]
[1756893951651,0.47586819,111290.0,111280.0,0.05116]
[1756893953263,0.45379276,111290.0,111280.0,0.05116]
[1756893956666,0.45379276,111290.0,111280.0,0.08741]
[1756893957661,0.45379276,111290.0,111280.0,0.05116]
[1756893958368,0.47379276,111290.0,111280.0,0.05116]
[1756893958965,0.47379276,111290.0,111280.0,0.08741]
[1756893959556,0.54674787,111290.0,111280.0,0.08741]
[1756893959960,0.54674787,111290.0,111280.0,0.05116]
[1756893960161,0.09337511,111290.0,111280.0,0.05116]
[1756893960464,1.38010787,111290.0,111280.0,0.08741]
[1756893961163,1.38010787,111290.0,111280.0,0.05116]
[1756893961861,1.38010787,111290.0,111280.0,0.004]
[1756893962664,1.94010787,111290.0,111280.0,0.004]
[1756893962865,1.96214522,111290.0,111280.0,0.004]
[1756893963163,1.96214522,111290.0,111280.0,0.0039]
[1756893963467,1.96190522,111290.0,111280.0,0.0039]
[1756893964059,1.96178522,111290.0,111280.0,0.0039]
[1756893964768,0.34541246,111290.0,111280.0,0.08731]
[1756893964968,1.63190522,111290.0,111280.0,0.08731]
[1756893965268,1.38226522,111290.0,111280.0,0.08731]
[1756893967669,1.38226522,111290.0,111280.0,0.05106]
[1756893967969,1.40226522,111290.0,111280.0,0.05106]
[1756893969369,1.40226522,111290.0,111280.0,0.08794]
[1756893969571,1.40226522,111290.0,111280.0,0.05106]
[1756893970369,1.40226522,111290.0,111280.0,0.08794]
[1756893971173,0.54878522,111290.0,111280.0,0.08794]
[1756893971473,1.38146522,111290.0,111280.0,0.08794]
[1756893971672,0.54878522,111290.0,111280.0,0.08794]
[1756893971973,1.38142522,111290.0,111280.0,0.08794]
[1756893973267,0.92805246,111290.0,111280.0,0.08794]
[1756893973675,0.54878522,111290.0,111280.0,0.08794]
[1756893973880,0.92845246,111290.0,111280.0,0.08794]
[1756893974075,1.38182522,111290.0,111280.0,0.08794]
[1756893976172,0.92761246,111290.0,111280.0,0.08794]
[1756893976372,1.38098522,111290.0,111280.0,0.08794]
[1756893977275,1.38098522,111290.0,111280.0,0.05106]
[1756893977776,1.38098522,111290.0,111280.0,0.02737]
[1756893978070,1.76098522,111290.0,111280.0,0.0039]
[1756893978268,2.01098522,111290.0,111280.0,0.0039]
[1756893978664,2.05932075,111290.0,111280.0,0.0039]
[1756893978876,2.51269351,111290.0,111280.0,0.0039]
[1756893980180,2.05932075,111290.0,111280.0,0.0039]
[1756893980370,2.01098522,111290.0,111280.0,0.0039]
[1756893983682,2.46435798,111290.0,111280.0,0.0039]
[1756893984182,1.62202737,111290.0,111280.0,0.0039]
[1756893984382,2.01098522,111290.0,111280.0,0.0039]
[1756893984783,1.55761246,111290.0,111280.0,0.0039]
[1756893984976,2.01130522,111290.0,111280.0,0.0039]
[1756893985475,2.0597356,111290.0,111280.0,0.0039]
[1756893986578,2.51310836,111290.0,111280.0,0.0039]
[1756893987486,2.28729652,111290.0,111280.0,0.0039]
[1756893989380,2.69217827,111290.0,111280.0,0.0039]
[1756893989687,1.02140052,111280.0,111270.0,0.0001]
[1756893989989,1.47187289,111280.0,111270.0,0.0001]
[1756893990780,1.47187289,111280.0,111270.0,0.0011]
[1756893991383,1.47187289,111280.0,111270.0,0.0021]
[1756893998687,1.72187289,111280.0,111250.0,0.06202]
[1756893998884,1.02140052,111260.0,111250.0,0.06202]
[1756893999089,1.42343787,111260.0,111250.0,0.03711]
[1756893999288,1.42343787,111260.0,111250.0,0.01401]
[1756893999891,1.42343787,111260.0,111250.0,0.01701]
[1756894000387,2.26646639,111260.0,111250.0,0.03757]
[1756894000592,2.26646639,111260.0,111250.0,0.03857]
[1756894000793,2.26646639,111260.0,111250.0,0.06348]
[1756894001390,2.26646639,111260.0,111250.0,0.06548]
[1756894002188,2.26646639,111260.0,111250.0,0.06448]
[1756894003691,2.26646639,111260.0,111250.0,0.03957]
[1756894004092,2.26646639,111260.0,111250.0,0.002]
[1756894004594,1.43242639,111260.0,111250.0,0.03937]
[1756894004796,1.09195955,111260.0,111250.0,0.09629]
[1756894005197,0.36250419,111260.0,111250.0,0.34629]
[1756894005397,1.19626419,111260.0,111250.0,0.34629]
[1756894005702,1.53689103,111260.0,111250.0,0.34629]
[1756894007297,0.70297103,111260.0,111250.0,0.34629]
[1756894007498,1.19610419,111260.0,111250.0,0.68675684]
[1756894007897,0.70297103,111260.0,111250.0,0.34629]
[1756894008400,1.53645103,111260.0,111250.0,0.34629]
[1756894008601,0.70297103,111260.0,111250.0,0.34629]
[1756894008796,1.53637103,111260.0,111250.0,0.34629]
[1756894009291,1.55637103,111260.0,111250.0,0.34629]
[1756894009997,1.55641103,111260.0,111250.0,0.34629]
[1756894010201,1.55629103,111260.0,111250.0,0.34629]
[1756894012306,1.55628759,111260.0,111250.0,0.34629]
[1756894012606,1.19538075,111260.0,111250.0,0.68675684]
[1756894012807,1.53584759,111260.0,111250.0,0.68675684]
[1756894013608,1.53584759,111260.0,111250.0,0.34629]
[1756894015110,0.85491391,111260.0,111250.0,0.34629]
[1756894015310,1.53584759,111260.0,111250.0,0.34629]
[1756894015709,0.85491391,111260.0,111250.0,0.34629]
[1756894016114,1.53584759,111260.0,111250.0,0.34629]
[1756894016309,0.02203391,111260.0,111250.0,1.03675684]
[1756894016514,1.19502075,111260.0,111250.0,1.03675684]
[1756894016710,1.19502075,111260.0,111250.0,1.04597986]
[1756894016911,0.85455391,111260.0,111250.0,0.69597986]
[1756894017110,1.19502075,111260.0,111250.0,0.69597986]
[1756894017312,1.19625578,111260.0,111250.0,0.68675684]
[1756894017511,1.19625578,111260.0,111250.0,0.68685684]
[1756894019212,1.19625578,111260.0,111250.0,0.43685684]
[1756894019718,1.19625578,111260.0,111250.0,0.09639]
[1756894020010,1.53672262,111260.0,111250.0,0.09639]
[1756894020817,0.85578894,111260.0,111250.0,0.09639]
[1756894021015,1.53672262,111260.0,111250.0,0.09639]
[1756894022012,0.36373578,111260.0,111250.0,0.43685684]
[1756894022211,0.02326894,111260.0,111250.0,0.43685684]
[1756894022414,1.19865578,111260.0,111250.0,0.43685684]
[1756894022813,0.36373578,111260.0,111250.0,0.43685684]
[1756894023015,0.85810894,111260.0,111250.0,1.03685684]
[1756894023916,0.02326894,111260.0,111250.0,1.03685684]
[1756894024117,0.85810894,111260.0,111250.0,1.03685684]
[1756894025523,0.83607503,111260.0,111250.0,1.03685684]
[1756894026222,0.00123503,111260.0,111250.0,1.03685684]
[1756894026626,0.83535503,111260.0,111250.0,1.03685684]
[1756894026824,0.00123503,111260.0,111250.0,1.37732368]
[1756894027023,0.00123503,111260.0,111250.0,1.46720228]
[1756894028723,0.00123503,111260.0,111250.0,2.30120228]
[1756894029026,2.33601511,111290.0,111280.0,0.08324]
[1756894029229,2.9085337,111290.0,111280.0,0.42370684]
[1756894029419,2.56806686,111290.0,111280.0,0.42370684]
[1756894029620,2.88648195,111290.0,111280.0,0.42370684]
[1756894030126,2.67948195,111290.0,111280.0,0.42370684]
[1756894030328,0.78004195,111290.0,111280.0,0.42370684]
[1756894030728,0.78204195,111290.0,111280.0,0.42370684]
[1756894031528,0.3662,111290.0,111280.0,1.14417368]
[1756894031731,0.3672,111290.0,111280.0,1.14417368]
[1756894031923,0.83858,111290.0,111280.0,0.08324]
[1756894032231,1.17704684,111290.0,111280.0,0.42370684]
[1756894036727,0.83658,111290.0,111280.0,0.42370684]
[1756894036928,1.17704684,111290.0,111280.0,0.42370684]
[1756894037827,0.83658,111290.0,111280.0,0.42370684]
[1756894038028,0.83632,111290.0,111280.0,1.10417368]
[1756894038333,0.002,111290.0,111280.0,1.10417368]
[1756894039733,0.002,111290.0,111280.0,1.14417368]
[1756894043136,0.002,111290.0,111280.0,0.76417368]
[1756894043335,0.00216,111290.0,111280.0,1.07417368]
[1756894044241,0.002,111290.0,111280.0,1.07417368]
[1756894044538,0.002,111290.0,111280.0,1.13417368]
[1756894044940,0.00242,111290.0,111280.0,0.44324]
[1756894045144,0.00242,111290.0,111280.0,1.12417368]
[1756894045736,0.00232,111290.0,111280.0,1.12417368]
[1756894045942,0.00216,111290.0,111280.0,1.12417368]
[1756894047240,0.002,111290.0,111280.0,1.12417368]
[1756894047444,0.002,111290.0,111280.0,1.10417368]
[1756894049441,0.002,111290.0,111280.0,0.87687467]
[1756894049946,0.00216,111290.0,111280.0,0.08324]
[1756894050138,0.00242,111290.0,111280.0,0.53687467]
[1756894050340,0.00242,111290.0,111280.0,0.08324]
[1756894053142,0.002,111290.0,111280.0,0.53687467]
[1756894055443,0.02406663,111290.0,111280.0,0.53687467]
[1756894057045,0.02406663,111290.0,111280.0,0.08324]
[1756894057249,0.02406663,111290.0,111280.0,0.53687467]
[1756894059653,0.02448663,111290.0,111280.0,0.53687467]
[1756894061552,0.02406663,111290.0,111280.0,0.53687467]
[1756894061955,0.02406663,111290.0,111280.0,0.08324]
[1756894062355,0.02406663,111290.0,111280.0,0.53687467]
[1756894062556,0.02406663,111290.0,111280.0,0.08324]
[1756894062856,0.02406663,111290.0,111280.0,0.53687467]
[1756894064853,0.02438663,111290.0,111280.0,0.53687467]
[1756894065654,0.02448663,111290.0,111280.0,0.53687467]
[1756894066657,0.02406663,111290.0,111280.0,0.53687467]
[1756894066952,0.02448663,111290.0,111280.0,0.53687467]
[1756894068061,0.02448663,111290.0,111280.0,0.08324]
[1756894068448,0.4781213,111290.0,111280.0,0.08324]
[1756894068648,0.7281213,111290.0,111280.0,0.08324]
[1756894068848,0.7481213,111290.0,111280.0,0.08324]
[1756894069960,0.81977555,111290.0,111280.0,0.08324]
[1756894070461,0.56977555,111290.0,111280.0,0.08324]
[1756894071759,0.92977555,111290.0,111280.0,0.08324]
[1756894072073,0.54977555,111290.0,111280.0,0.08324]
[1756894072461,1.40173555,111290.0,111280.0,0.08324]
[1756894072662,0.94810088,111290.0,111280.0,0.08324]
[1756894073155,0.92810088,111290.0,111280.0,0.08324]
[1756894074760,0.09614088,111290.0,111280.0,0.08324]
[1756894074961,0.92806088,111290.0,111280.0,0.53687467]
[1756894075162,0.92764088,111290.0,111280.0,0.53687467]
[1756894075460,0.85614663,111290.0,111280.0,0.53687467]
[1756894075862,0.85630663,111290.0,111280.0,0.53687467]
[1756894076064,0.85640663,111290.0,111280.0,0.53687467]
[1756894078865,0.92803931,111290.0,111280.0,0.53687467]
[1756894080167,0.09611931,111290.0,111280.0,0.53687467]
[1756894080363,0.09569931,111290.0,111280.0,0.53687467]
[1756894080563,0.92757931,111290.0,111280.0,0.53687467]
[1756894081168,0.02406663,111290.0,111280.0,1.10687467]
[1756894081372,0.002,111290.0,111280.0,1.19672587]
[1756894081668,0.002,111290.0,111280.0,1.19672597]
[1756894082565,0.002,111290.0,111280.0,1.10687467]
[1756894085371,0.002,111290.0,111280.0,1.19672507]
[1756894086673,0.002,111290.0,111280.0,1.65035974]
[1756894086868,0.002,111290.0,111280.0,1.19672507]
[1756894089281,0.002,111290.0,111280.0,2.37195974]
[1756894089870,0.002,111290.0,111280.0,2.63575974]
[1756894091177,0.002,111290.0,111280.0,2.71659722]
[1756894091577,0.002,111290.0,111280.0,2.45279722]
[1756894091771,0.002,111290.0,111280.0,2.47403043]
[1756894091978,0.0001,111320.0,111290.0,0.1377559]
[1756894092171,2.64656,111330.0,111320.0,0.08453]
[1756894092366,3.0086127,111330.0,111320.0,0.08453]
[1756894094676,3.0146127,111330.0,111320.0,0.08453]
[1756894096177,3.0146127,111330.0,111320.0,0.53816467]
[1756894096473,1.2004127,111330.0,111320.0,0.08453]
[1756894096676,1.2044127,111330.0,111320.0,0.08453]
[1756894096872,1.2044127,111330.0,111320.0,0.53816467]
[1756894097472,1.18236,111330.0,111320.0,0.53816467]
[1756894101284,1.18236,111330.0,111320.0,0.08453]
[1756894101474,1.18236,111330.0,111320.0,0.53816467]
[1756894101670,1.17836,111330.0,111320.0,0.53816467]
[1756894102879,1.17436,111330.0,111320.0,0.53816467]
[1756894103079,1.17536,111330.0,111320.0,0.53816467]
[1756894103382,1.17536,111330.0,111320.0,0.08453]
[1756894103674,1.17536,111330.0,111320.0,0.53816467]
[1756894105576,1.19735614,111330.0,111320.0,0.53816467]
[1756894106482,0.36583614,111330.0,111320.0,0.89896467]
[1756894106681,0.85711614,111330.0,111320.0,0.89896467]
[1756894107078,0.02499614,111330.0,111320.0,1.22896467]
[1756894107383,0.02519614,111330.0,111320.0,1.22896467]
[1756894108090,0.02583614,111330.0,111320.0,0.89896467]
[1756894109591,0.02583614,111330.0,111320.0,1.12530988]
[1756894112584,0.02583614,111330.0,111320.0,0.44533]
[1756894112890,0.36582608,111330.0,111320.0,0.42451994]
[1756894113188,0.97662608,111330.0,111320.0,0.04791]
[1756894113378,0.99662608,111330.0,111320.0,0.04791]
[1756894115489,1.62641602,111330.0,111310.0,0.30042]
[1756894115690,1.53258994,111320.0,111310.0,0.31171]
[1756894115992,1.57458608,111320.0,111310.0,0.31171]
[1756894116492,1.57458608,111320.0,111310.0,0.04791]
[1756894116693,1.91457602,111320.0,111300.0,0.41131]
[1756894116887,0.34082994,111310.0,111300.0,0.43840994]
[1756894117195,0.36286461,111310.0,111300.0,0.09842]
[1756894117396,0.38286461,111310.0,111300.0,0.09842]
[1756894117692,0.04287467,111310.0,111300.0,0.43840994]
[1756894117891,0.38286461,111310.0,111300.0,0.43940994]
[1756894118596,0.38286461,111310.0,111300.0,0.43840994]
[1756894119394,0.38286461,111310.0,111300.0,0.09842]
[1756894119697,0.38286461,111310.0,111300.0,0.43840994]